bitfinex-derivatives/quotes_BTCF0:USTF0_20250910
["timestamp","ask_amount","ask_price","bid_price","bid_amount"]
[1757541610621,2.8768994,113820.0,113810.0,1.5164118]
[1757541611020,2.7018897,113820.0,113810.0,1.5164118]
[1757541613622,2.7018897,113820.0,113810.0,1.3414021]
[1757541613823,2.7018897,113820.0,113810.0,1.5164118]
[1757541614622,2.52688,113820.0,113810.0,1.5164118]
[1757541614831,2.7018897,113820.0,113810.0,1.5164118]
[1757541616122,3.0626897,113820.0,113810.0,1.5164118]
[1757541616323,2.7018897,113820.0,113810.0,1.5164118]
[1757541617333,2.7018897,113820.0,113810.0,1.72123162]
[1757541621530,2.52688,113820.0,113810.0,1.80907182]
[1757541621732,1.9008497,113820.0,113810.0,1.80907182]
[1757541622029,1.72584,113820.0,113810.0,1.51179707]
[1757541622228,2.52652,113820.0,113810.0,1.51179707]
[1757541622836,2.52652,113820.0,113810.0,1.354252]
[1757541623536,2.52652,113820.0,113810.0,1.55907182]
[1757541624626,2.52652,113820.0,113810.0,1.354252]
[1757541625232,2.52652,113820.0,113810.0,1.91990848]
[1757541625436,2.7015297,113820.0,113810.0,1.55910848]
[1757541625734,2.7015297,113820.0,113810.0,1.91990848]
[1757541626428,2.7015297,113820.0,113810.0,1.86155286]
[1757541626429,2.52652,113820.0,113810.0,1.86155286]
[1757541627240,2.52652,113820.0,113810.0,1.50075286]
[1757541627430,2.52652,113820.0,113810.0,1.86155286]
[1757541627736,2.52652,113820.0,113810.0,1.41291266]
[1757541627930,2.52652,113820.0,113810.0,1.50075286]
[1757541628621,2.52652,113820.0,113810.0,1.38409878]
[1757541629022,2.52652,113820.0,113810.0,1.50075286]
[1757541629631,2.52652,113820.0,113810.0,1.38409878]
[1757541629839,2.52652,113820.0,113810.0,1.50075286]
[1757541630631,2.52652,113820.0,113810.0,1.29625858]
[1757541630928,2.64317408,113820.0,113810.0,1.29625858]
[1757541631134,2.64317408,113820.0,113810.0,1.0914021]
[1757541631635,3.37062816,113820.0,113810.0,1.29631656]
[1757541631933,3.37062816,113820.0,113810.0,1.22675656]
[1757541632735,3.13732,113820.0,113810.0,1.22675656]
[1757541632937,3.37062816,113820.0,113810.0,1.22675656]
[1757541633937,3.37062816,113820.0,113810.0,1.23553656]
[1757541634238,3.37062816,113820.0,113810.0,1.0306221]
[1757541636533,3.13732,113820.0,113810.0,1.0306221]
[1757541636737,3.37062816,113820.0,113810.0,1.0306221]
[1757541637342,3.37062816,113820.0,113810.0,1.0950521]
[1757541639139,3.13732,113820.0,113810.0,1.0950521]
[1757541639438,3.12062816,113820.0,113810.0,1.0950521]
[1757541641342,2.88732,113820.0,113810.0,1.0950521]
[1757541641740,3.00397408,113820.0,113810.0,1.0950521]
[1757541652236,3.00397408,113820.0,113810.0,1.21170618]
[1757541652440,3.00397408,113820.0,113810.0,1.0950521]
[1757541652647,3.00397408,113820.0,113810.0,1.75954998]
[1757541652648,1.72584,113820.0,113810.0,1.75954998]
[1757541652850,2.52696,113820.0,113810.0,1.63782804]
[1757541653148,2.52696,113820.0,113810.0,1.75448212]
[1757541653944,2.52696,113820.0,113810.0,1.4328959]
[1757541654146,2.52696,113820.0,113810.0,1.54954998]
[1757541654750,2.52696,113820.0,113810.0,1.4328959]
[1757541654950,2.52696,113820.0,113810.0,1.54954998]
[1757541656356,2.52696,113820.0,113810.0,1.80173992]
[1757541660356,2.64361408,113820.0,113810.0,1.80173992]
[1757541660960,2.52696,113820.0,113810.0,1.80173992]
[1757541666958,1.72584,113820.0,113810.0,2.00673124]
[1757541667157,2.52676,113820.0,113810.0,2.00673124]
[1757541667369,2.52376,113820.0,113810.0,2.00673124]
[1757541667571,2.52472,113820.0,113810.0,2.00673124]
[1757541668463,1.7020542,113820.0,113810.0,2.33199538]
[1757541668674,0.3608,113850.0,113840.0,0.1566806]
[1757541668966,0.8018,113850.0,113840.0,1.28890912]
[1757541669369,0.8018,113850.0,113840.0,1.64970912]
[1757541669770,0.8018,113850.0,113840.0,1.65848912]
[1757541669971,0.8068,113850.0,113840.0,1.65848912]
[1757541670174,0.006,113850.0,113840.0,1.8629638]
[1757541670367,0.80784,113850.0,113840.0,1.8629638]
[1757541670566,0.80784,113850.0,113840.0,2.3929638]
[1757541670567,0.006,113850.0,113840.0,2.3929638]
[1757541670875,0.8078,113850.0,113840.0,2.4429638]
[1757541671076,0.8078,113850.0,113840.0,2.20965564]
[1757541671278,0.8078,113850.0,113840.0,2.4429638]
[1757541671478,0.006,113850.0,113840.0,2.5429638]
[1757541671774,0.80335226,113850.0,113840.0,2.5429638]
[1757541671977,1.77052,113860.0,113850.0,0.2680129]
[1757541672173,0.3608,113880.0,113850.0,0.2680129]
[1757541672174,0.41913,113910.0,113870.0,0.1566575]
[1757541672376,0.10526,113910.0,113900.0,0.29685408]
[1757541672678,0.90778,113910.0,113900.0,1.86370293]
[1757541672869,0.90778,113910.0,113900.0,1.65927455]
[1757541673171,0.90778,113910.0,113900.0,1.79302282]
[1757541673377,0.91678,113910.0,113900.0,1.79302282]
[1757541673981,0.90778,113910.0,113900.0,1.79302282]
[1757541674179,0.3608,113950.0,113920.0,0.06886]
[1757541674379,0.448531,113960.0,113950.0,0.1802]
[1757541674677,2.88543408,113960.0,113950.0,1.09929749]
[1757541674873,3.08981606,113960.0,113950.0,1.09929749]
[1757541675069,3.00208816,113960.0,113950.0,1.09929749]
[1757541675275,2.88543408,113960.0,113950.0,1.16915979]
[1757541676282,0.9083,113960.0,113950.0,1.52995979]
[1757541676482,1.02495408,113960.0,113950.0,1.52995979]
[1757541676667,0.9083,113960.0,113950.0,1.73434947]
[1757541676872,0.9083,113960.0,113950.0,1.8654331]
[1757541677370,0.9083,113960.0,113950.0,1.7776975]
[1757541677981,0.80304,113960.0,113950.0,1.7776975]
[1757541679381,1.16969408,113960.0,113950.0,1.54970342]
[1757541679579,1.25742198,113960.0,113950.0,1.12004342]
[1757541679884,1.6068279,113960.0,113950.0,0.9101223]
[1757541680185,1.84013606,113960.0,113950.0,0.9101223]
[1757541680771,0.46606,113960.0,113950.0,1.0903223]
[1757541681079,0.91154,113960.0,113950.0,1.5830285]
[1757541681873,0.91154,113960.0,113950.0,1.78741818]
[1757541682072,0.91154,113960.0,113950.0,1.6707641]
[1757541682978,1.02819408,113960.0,113950.0,1.6707641]
[1757541683183,1.02819408,113960.0,113950.0,1.5830285]
[1757541683778,0.91154,113960.0,113950.0,1.5830285]
[1757541684280,1.63899408,113960.0,113950.0,1.0420285]
[1757541684584,1.39484816,113960.0,113950.0,1.0420285]
[1757541684782,1.48257606,113960.0,113950.0,1.0420285]
[1757541684985,0.91154,113960.0,113950.0,1.1112385]
[1757541685178,1.02819408,113960.0,113950.0,1.1112385]
[1757541685483,0.91154,113960.0,113950.0,1.1112385]
[1757541685679,1.02819408,113960.0,113950.0,1.1112385]
[1757541685885,1.48257606,113960.0,113950.0,1.1112385]
[1757541686183,1.84337606,113960.0,113950.0,0.9101223]
[1757541688380,2.1340719,113960.0,113950.0,0.9101223]
[1757541688785,1.3277919,113960.0,113950.0,0.9101223]
[1757541688990,1.590836,113960.0,113950.0,0.9793323]
[1757541689789,1.6285639,113960.0,113950.0,0.9881023]
[1757541690181,0.8031239,113960.0,113950.0,0.9881023]
[1757541690385,0.540728,113960.0,113950.0,1.32172056]
[1757541690585,1.540636,113960.0,113950.0,1.23398496]
[1757541690786,1.365968,113960.0,113950.0,1.23398496]
[1757541691894,1.4536959,113960.0,113950.0,1.23398496]
[1757541692189,1.2675639,113960.0,113950.0,1.23398496]
[1757541692590,1.8783639,113960.0,113950.0,1.11946496]
[1757541692791,1.8783639,113960.0,113950.0,1.05025496]
[1757541694692,1.80346326,113960.0,113950.0,1.05025496]
[1757541695794,1.94068094,113960.0,113950.0,0.9188923]
[1757541699297,1.69068094,113960.0,113950.0,0.9188923]
[1757541706596,1.94068094,113960.0,113950.0,0.9188923]
[1757541706801,1.94068094,113960.0,113950.0,6e-08]
[1757541706997,0.0877587,113920.0,113910.0,0.43001]
[1757541707193,2.95259406,113920.0,113910.0,1.1791386]
[1757541707596,3.31339406,113920.0,113910.0,1.06944087]
[1757541708500,3.31339406,113920.0,113910.0,1.07244087]
[1757541708702,3.31339406,113920.0,113910.0,1.00323087]
[1757541708902,3.31339406,113920.0,113910.0,0.90323087]
[1757541709900,3.0389587,113920.0,113910.0,0.90323087]
[1757541710099,3.31327406,113920.0,113910.0,0.97244087]
[1757541710500,3.31327406,113920.0,113910.0,0.90323087]
[1757541711203,3.31327406,113920.0,113910.0,0.97219087]
[1757541711699,3.0388387,113920.0,113910.0,0.97219087]
[1757541711901,3.31327406,113920.0,113910.0,0.97219087]
[1757541712599,3.31327406,113920.0,113910.0,0.90323087]
[1757541715301,3.45049174,113920.0,113910.0,0.90323087]
[1757541715503,3.72066013,113920.0,113910.0,0.63601927]
[1757541715694,3.72066013,113920.0,113910.0,0.44533367]
[1757541715894,3.72066013,113920.0,113910.0,0.14759687]
[1757541716104,3.72066013,113920.0,113910.0,0.50672427]
[1757541716297,3.72066013,113920.0,113910.0,0.18905297]
[1757541716499,0.0877664,113910.0,113900.0,0.01099]
[1757541716698,0.72300176,113910.0,113900.0,0.55099]
[1757541717004,0.72300176,113910.0,113900.0,0.82099]
[1757541717991,1.54392176,113910.0,113900.0,0.82099]
[1757541718395,1.54392176,113910.0,113900.0,0.82199]
[1757541719810,1.54392176,113910.0,113900.0,0.89090697]
[1757541720010,1.54344176,113910.0,113900.0,0.89090697]
[1757541720909,0.72300176,113910.0,113900.0,0.89090697]
[1757541721212,1.54316176,113910.0,113900.0,0.89090697]
[1757541726609,0.0877895,113880.0,113870.0,0.06896]
[1757541726911,0.0877972,113870.0,113860.0,0.60627826]
[1757541727105,1.99445488,113870.0,113860.0,1.35013958]
[1757541727305,1.99445488,113870.0,113860.0,1.2129219]
[1757541727507,1.99445488,113870.0,113860.0,1.35013958]
[1757541727904,1.8572372,113870.0,113860.0,1.35013958]
[1757541728104,1.99445488,113870.0,113860.0,1.35944272]
[1757541728306,1.99445488,113870.0,113860.0,1.22222504]
[1757541728509,1.99445488,113870.0,113860.0,1.35944272]
[1757541728710,1.99445488,113870.0,113860.0,1.36344272]
[1757541729111,1.99445488,113870.0,113860.0,1.36444272]
[1757541729712,1.8572372,113870.0,113860.0,1.36444272]
[1757541730312,2.6765572,113870.0,113860.0,1.5016604]
[1757541730712,2.6765572,113870.0,113860.0,1.36444272]
[1757541732111,2.81377488,113870.0,113860.0,1.36444272]
[1757541734716,2.6765572,113870.0,113860.0,1.36444272]
[1757541735912,3.0373572,113870.0,113860.0,1.36444272]
[1757541736415,3.0368372,113870.0,113860.0,1.36444272]
[1757541736608,3.0368372,113870.0,113860.0,1.25474499]
[1757541737216,3.0368372,113870.0,113860.0,1.39196267]
[1757541737510,2.2180372,113870.0,113860.0,1.39196267]
[1757541737715,3.0363572,113870.0,113860.0,1.39196267]
[1757541737910,3.0363972,113870.0,113860.0,1.39196267]
[1757541738114,3.0363972,113870.0,113860.0,1.2582201]
[1757541738617,3.0363972,113870.0,113860.0,1.09728474]
[1757541738914,3.0363972,113870.0,113860.0,1.3717201]
[1757541739118,2.6755972,113870.0,113860.0,1.3717201]
[1757541740817,1.8572372,113870.0,113860.0,1.3717201]
[1757541741017,2.6751972,113870.0,113860.0,1.09728474]
[1757541741416,2.6751972,113870.0,113860.0,1.3717201]
[1757541742018,2.6751972,113870.0,113860.0,1.48141783]
[1757541743507,1.8572372,113870.0,113860.0,1.48141783]
[1757541743816,2.6749572,113870.0,113860.0,1.48141783]
[1757541744414,2.6749572,113870.0,113860.0,1.3717201]
[1757541744614,2.6748772,113870.0,113860.0,1.3717201]
[1757541745018,1.8572372,113870.0,113860.0,1.3717201]
[1757541745318,2.6748772,113870.0,113860.0,1.3717201]
[1757541745919,2.6748772,113870.0,113860.0,1.09728474]
[1757541746118,2.81209488,113870.0,113860.0,1.3717201]
[1757541746920,2.6748772,113870.0,113860.0,1.3717201]
[1757541748719,2.6748772,113870.0,113860.0,1.09728474]
[1757541748922,2.6748772,113870.0,113860.0,1.3717201]
[1757541749820,2.6748772,113870.0,113860.0,1.09728474]
[1757541750120,3.54584725,113870.0,113860.0,1.01565333]
[1757541750320,3.45467813,113870.0,113860.0,1.01565333]
[1757541750723,3.27141189,113870.0,113860.0,1.01565333]
[1757541751027,3.0360772,113870.0,113860.0,1.17075645]
[1757541751220,3.0360772,113870.0,113860.0,1.06062472]
[1757541751421,3.0364772,113870.0,113860.0,1.05562472]
[1757541751623,3.0374772,113870.0,113860.0,1.05662472]
[1757541752623,2.2190372,113870.0,113860.0,1.05662472]
[1757541752815,2.13124,113870.0,113860.0,1.35519165]
[1757541753017,1.77044,113870.0,113860.0,1.48631904]
[1757541753225,2.58848,113870.0,113860.0,1.28834206]
[1757541753523,2.6762772,113870.0,113860.0,1.10507582]
[1757541753823,2.6762772,113870.0,113860.0,1.2617361]
[1757541754027,3.0370772,113870.0,113860.0,1.13060871]
[1757541754217,3.0379172,113870.0,113860.0,1.22224183]
[1757541754724,3.12955032,113870.0,113860.0,1.17431155]
[1757541754925,3.12955032,113870.0,113860.0,1.08267843]
[1757541755116,3.0381172,113870.0,113860.0,1.17431155]
[1757541755325,1.8582372,113870.0,113860.0,1.39784417]
[1757541755628,2.6778372,113870.0,113860.0,1.39784417]
[1757541755822,2.6778372,113870.0,113860.0,1.30621105]
[1757541756225,2.6778372,113870.0,113860.0,1.21457793]
[1757541756521,2.6778372,113870.0,113860.0,1.416385]
[1757541757024,1.60452802,113870.0,113860.0,2.11881812]
[1757541757325,2.51184522,113870.0,113860.0,1.91701105]
[1757541757522,2.51184522,113870.0,113860.0,2.00864417]
[1757541757523,2.50131183,113870.0,113860.0,2.00864417]
[1757541758025,2.50131183,113870.0,113860.0,2.21288474]
[1757541758220,2.50131183,113870.0,113860.0,2.12125162]
[1757541758419,2.41351463,113870.0,113860.0,2.12125162]
[1757541758821,2.50131183,113870.0,113860.0,2.12125162]
[1757541759326,2.41351463,113870.0,113860.0,1.96288474]
[1757541760025,2.39925073,113870.0,113860.0,1.96288474]
[1757541761727,2.39949073,113870.0,113860.0,2.05068964]
[1757541762230,2.39949073,113870.0,113860.0,1.96288474]
[1757541763533,2.39949073,113870.0,113860.0,2.05068964]
[1757541763832,2.39921073,113870.0,113860.0,2.87975852]
[1757541764026,2.39921073,113870.0,113860.0,2.67551795]
[1757541764528,2.39921073,113870.0,113860.0,2.51808219]
[1757541764932,2.39921073,113870.0,113860.0,1.77318283]
[1757541765132,2.39921073,113870.0,113860.0,1.95644907]
[1757541765337,2.39921073,113870.0,113860.0,2.16068964]
[1757541766035,2.39921073,113870.0,113860.0,2.26068964]
[1757541766429,2.39921073,113870.0,113860.0,2.46068964]
[1757541766834,2.39921073,113870.0,113860.0,2.29068964]
[1757541767236,2.40013073,113870.0,113860.0,2.29068964]
[1757541767937,2.40037073,113870.0,113860.0,2.29068964]
[1757541768125,2.40025073,113870.0,113860.0,2.29068964]
[1757541768329,2.40017073,113870.0,113860.0,2.29068964]
[1757541770145,2.3859086,113870.0,113860.0,2.29068964]
[1757541771943,1.29273001,113870.0,113860.0,2.49232276]
[1757541772140,1.48014561,113870.0,113860.0,2.82232276]
[1757541773741,0.65982561,113870.0,113860.0,2.82232276]
[1757541773940,0.4874018,113870.0,113860.0,2.82232276]
[1757541774146,0.08116277,113900.0,113890.0,0.2732816]
[1757541774449,1.88035,113910.0,113900.0,0.1855]
[1757541774645,2.70563,113910.0,113900.0,1.43793312]
[1757541774842,2.65563,113910.0,113900.0,1.47881958]
[1757541775044,2.72115,113910.0,113900.0,1.77469327]
[1757541775350,2.72115,113910.0,113900.0,1.84424225]
[1757541775551,2.72115,113910.0,113900.0,1.77492225]
[1757541776539,2.72515,113910.0,113900.0,1.77492225]
[1757541777150,2.72615,113910.0,113900.0,1.77492225]
[1757541777353,2.72615,113910.0,113900.0,1.57068168]
[1757541777542,2.72215,113910.0,113900.0,1.57068168]
[1757541778855,2.72115,113910.0,113900.0,1.57068168]
[1757541779151,2.72215,113910.0,113900.0,1.57068168]
[1757541780364,2.72215,113910.0,113900.0,1.72777578]
[1757541781057,2.65663,113910.0,113900.0,1.72777578]
[1757541781352,2.65523,113910.0,113900.0,1.8194089]
[1757541781555,1.72064,113910.0,113900.0,1.8194089]
[1757541781759,2.54436,113910.0,113900.0,2.0694089]
[1757541782262,1.72064,113910.0,113900.0,2.09038323]
[1757541782554,1.71964,113910.0,113900.0,2.46528259]
[1757541782858,2.54412,113910.0,113900.0,2.81628259]
[1757541783052,2.54412,113910.0,113900.0,2.94880647]
[1757541783561,2.54312,113910.0,113900.0,2.94980647]
[1757541783853,2.54312,113910.0,113900.0,2.72980647]
[1757541784157,2.54312,113910.0,113900.0,2.91980647]
[1757541784358,2.54312,113910.0,113900.0,2.82817335]
[1757541784654,2.54312,113910.0,113900.0,2.34817335]
[1757541788059,2.54312,113910.0,113900.0,2.16876613]
[1757541788363,2.54312,113910.0,113900.0,2.11892834]
[1757541788752,1.71964,113910.0,113900.0,2.21056146]
[1757541789059,0.30063,113940.0,113930.0,0.1855]
[1757541789261,0.93299,113940.0,113930.0,1.4763]
[1757541789461,0.99851,113940.0,113930.0,1.70032064]
[1757541789761,0.99855,113940.0,113930.0,1.71830514]
[1757541789955,0.99855,113940.0,113930.0,1.64898514]
[1757541789956,1.24855,113940.0,113930.0,1.64898514]
[1757541790162,1.3362935,113940.0,113930.0,1.64898514]
[1757541790354,1.3372935,113940.0,113930.0,1.53280514]
[1757541790555,1.78972662,113940.0,113930.0,1.17200514]
[1757541790755,1.42892662,113940.0,113930.0,1.17200514]
[1757541790957,1.3372935,113940.0,113930.0,1.17200514]
[1757541791160,1.42892662,113940.0,113930.0,1.17200514]
[1757541791660,1.42992662,113940.0,113930.0,1.17200514]
[1757541791862,1.3382935,113940.0,113930.0,1.17200514]
[1757541792162,1.3382935,113940.0,113930.0,1.26363826]
[1757541792364,1.3382935,113940.0,113930.0,1.15402064]
[1757541792861,1.3382935,113940.0,113930.0,1.06238752]
[1757541793064,0.42823,113940.0,113930.0,1.16320489]
[1757541793266,1.25111,113940.0,113930.0,1.16320489]
[1757541793662,1.3388535,113940.0,113930.0,1.16320489]
[1757541793862,1.2888535,113940.0,113930.0,1.16320489]
[1757541794163,1.83291974,113940.0,113930.0,1.03961762]
[1757541794364,1.74124662,113940.0,113930.0,0.93]
[1757541794754,0.12823,113940.0,113930.0,1.13781312]
[1757541794956,0.95103,113940.0,113930.0,1.63048711]
[1757541795264,0.95103,113940.0,113930.0,1.37930473]
[1757541795468,0.95103,113940.0,113930.0,1.28767161]
[1757541795764,1.0387735,113940.0,113930.0,1.37930473]
[1757541796164,0.95103,113940.0,113930.0,1.37930473]
[1757541796370,1.0387735,113940.0,113930.0,1.28767161]
[1757541796561,1.0387735,113940.0,113930.0,1.38854315]
[1757541797868,1.13040662,113940.0,113930.0,1.29691003]
[1757541799860,1.13040662,113940.0,113930.0,1.18073003]
[1757541800061,1.49120662,113940.0,113930.0,1.18073003]
[1757541800369,1.13040662,113940.0,113930.0,1.18073003]
[1757541800569,0.95095,113940.0,113930.0,1.18073003]
[1757541800872,1.13032662,113940.0,113930.0,1.18073003]
[1757541801068,1.49112662,113940.0,113930.0,1.18073003]
[1757541802272,1.0386935,113940.0,113930.0,1.18073003]
[1757541802467,1.0395735,113940.0,113930.0,1.25036003]
[1757541802770,1.0395735,113940.0,113930.0,1.27236315]
[1757541803571,0.1504535,113940.0,113930.0,1.34199315]
[1757541803871,0.9739335,113940.0,113930.0,1.34199315]
[1757541804065,0.9739335,113940.0,113930.0,1.23237553]
[1757541804261,0.9132235,113940.0,113930.0,1.59317553]
[1757541805562,1.00485662,113940.0,113930.0,1.43191241]
[1757541805766,1.15209974,113940.0,113930.0,1.07111241]
[1757541806264,1.15209974,113940.0,113930.0,0.81745888]
[1757541806265,1.87107974,113940.0,113930.0,0.81745888]
[1757541806465,1.87007974,113940.0,113930.0,0.81745888]
[1757541806665,1.87007974,113940.0,113930.0,0.70757]
[1757541808169,1.70628974,113940.0,113930.0,0.70757]
[1757541808478,0.88280974,113940.0,113930.0,0.70757]
[1757541808670,1.70604974,113940.0,113930.0,0.70757]
[1757541809172,0.6995435,113940.0,113930.0,0.70757]
[1757541809372,1.70580974,113940.0,113930.0,0.70757]
[1757541809574,1.70572974,113940.0,113930.0,0.70757]
[1757541810974,1.70572974,113940.0,113930.0,0.81745888]
[1757541811773,1.5224635,113940.0,113930.0,0.81745888]
[1757541811977,1.70572974,113940.0,113930.0,0.81745888]
[1757541812578,1.7969911,113940.0,113930.0,0.81745888]
[1757541813275,1.5224635,113940.0,113930.0,0.81745888]
[1757541813579,1.7969911,113940.0,113930.0,0.81745888]
[1757541813774,1.95434979,113940.0,113930.0,0.70757]
[1757541814775,1.95434979,113940.0,113930.0,0.5729972]
[1757541814978,1.95434979,113940.0,113930.0,0.5050277]
[1757541815185,1.95434979,113940.0,113930.0,0.2000886]
[1757541815370,1.95434979,113940.0,113930.0,0.1459129]
[1757541815571,1.95434979,113940.0,113930.0,0.6441533]
[1757541815772,1.95834979,113940.0,113930.0,0.7999508]
[1757541815972,1.95734979,113940.0,113930.0,0.6614858]
[1757541816173,1.95934979,113940.0,113930.0,0.5919103]
[1757541816378,1.95934979,113940.0,113930.0,0.5497348]
[1757541816877,1.95934979,113940.0,113930.0,0.6834439]
[1757541817388,1.95934979,113940.0,113930.0,0.6350098]
[1757541817576,1.96062979,113940.0,113930.0,0.6350098]
[1757541817777,0.74916599,113940.0,113930.0,0.8]
[1757541818182,0.47463839,113940.0,113930.0,0.86963]
[1757541818486,1.57320599,113940.0,113930.0,0.86963]
[1757541818878,1.57320599,113940.0,113930.0,0.8]
[1757541819184,1.56920599,113940.0,113930.0,0.8]
[1757541819385,1.57320599,113940.0,113930.0,0.8]
[1757541819790,1.56920599,113940.0,113930.0,0.8]
[1757541819972,1.57220599,113940.0,113930.0,0.8]
[1757541820387,1.42636325,113940.0,113930.0,0.8]
[1757541820580,1.55504811,113940.0,113930.0,0.8]
[1757541820786,1.80504811,113940.0,113930.0,0.8]
[1757541821786,1.80504811,113940.0,113930.0,0.7766958]
[1757541822884,0.0877514,113930.0,113920.0,0.02825008]
[1757541823190,0.0877668,113910.0,113900.0,0.22617746]
[1757541823388,1.40077166,113910.0,113900.0,1.08617746]
[1757541823590,1.40073166,113910.0,113900.0,0.92954898]
[1757541824187,1.2720468,113910.0,113900.0,0.92954898]
[1757541824387,1.40073166,113910.0,113900.0,0.92954898]
[1757541825682,1.40073166,113910.0,113900.0,0.93054898]
[1757541826687,1.40073166,113910.0,113900.0,0.93154898]
[1757541827290,1.40073166,113910.0,113900.0,0.94154898]
[1757541830284,1.2720468,113910.0,113900.0,0.94154898]
[1757541830489,1.39921166,113910.0,113900.0,0.94154898]
[1757541830891,0.57725166,113910.0,113900.0,1.00494898]
[1757541831088,0.9101668,113910.0,113900.0,1.49806384]
[1757541831294,1.0204572,113930.0,113920.0,0.17783]
[1757541831596,1.2708772,113930.0,113920.0,1.03783]
[1757541832486,1.2728772,113930.0,113920.0,1.03783]
[1757541832790,1.2738772,113930.0,113920.0,1.03783]
[1757541833890,1.40256206,113930.0,113920.0,0.9234]
[1757541834094,1.40256206,113930.0,113920.0,0.86]
[1757541835792,1.40256206,113930.0,113920.0,1.01662848]
[1757541837306,1.40256206,113930.0,113920.0,0.86]
[1757541839497,1.2738772,113930.0,113920.0,0.9234]
[1757541839698,1.40256206,113930.0,113920.0,0.9234]
[1757541840396,1.40256206,113930.0,113920.0,0.86]
[1757541843697,1.40256206,113930.0,113920.0,0.9234]
[1757541844205,0.4515572,113930.0,113920.0,1.03783]
[1757541844386,1.40969903,113930.0,113920.0,1.03783]
[1757541844690,1.40969903,113930.0,113920.0,1.17509183]
[1757541845195,0.4515572,113930.0,113920.0,1.17509183]
[1757541845389,0.0907572,113930.0,113920.0,1.56235366]
[1757541845699,1.04853903,113930.0,113920.0,1.42509183]
[1757541846394,0.9112772,113930.0,113920.0,1.28783]
[1757541846799,0.9102772,113930.0,113920.0,1.28783]
[1757541847599,0.0897572,113930.0,113920.0,1.28783]
[1757541847899,0.9097172,113930.0,113920.0,1.44445848]
[1757541848102,0.0887572,113930.0,113920.0,1.57311926]
[1757541848293,0.9085972,113930.0,113920.0,1.57311926]
[1757541848593,0.0887572,113930.0,113920.0,1.41649078]
[1757541848904,0.001,113930.0,113920.0,2.06588831]
[1757541849199,0.82076,113930.0,113920.0,2.06588831]
[1757541849600,0.82076,113930.0,113920.0,1.90896519]
[1757541849900,0.82076,113930.0,113920.0,2.11320576]
[1757541850199,0.81976,113930.0,113920.0,2.11320576]
[1757541850400,0.9075114,113930.0,113920.0,2.11420576]
[1757541851401,0.81976,113930.0,113920.0,2.11420576]
[1757541852203,0.81976,113930.0,113920.0,1.90996519]
[1757541854197,0.81976,113930.0,113920.0,1.78130441]
[1757541854398,0.70160988,113940.0,113920.0,1.90996519]
[1757541854701,0.70160988,113940.0,113930.0,0.33464627]
[1757541854918,1.52080988,113940.0,113930.0,1.20464627]
[1757541856205,1.3931491,113940.0,113930.0,1.04783]
[1757541857102,1.0323491,113940.0,113930.0,1.04783]
[1757541857308,1.0323491,113940.0,113930.0,1.17649078]
[1757541857702,1.0323491,113940.0,113930.0,1.33330705]
[1757541857898,0.001,113940.0,113930.0,1.91285992]
[1757541858210,0.8198,113940.0,113930.0,1.82510842]
[1757541858409,0.001,113940.0,113930.0,1.91285992]
[1757541858608,0.001,113940.0,113930.0,1.75604365]
[1757541858909,0.001,113940.0,113930.0,2.00604365]
[1757541859109,0.81952,113940.0,113930.0,2.00604365]
[1757541859609,0.81952,113940.0,113930.0,2.00704365]
[1757541860104,0.81852,113940.0,113930.0,1.87838287]
[1757541860406,0.81852,113940.0,113930.0,2.00704365]
[1757541860809,0.81852,113940.0,113930.0,2.21128422]
[1757541861611,0.81852,113940.0,113930.0,1.51273272]
[1757541861807,0.81852,113940.0,113930.0,1.87353272]
[1757541862207,0.81852,113940.0,113930.0,1.38407194]
[1757541863110,0.81852,113940.0,113930.0,1.51273272]
[1757541863312,0.81852,113940.0,113930.0,1.30849215]
[1757541864314,1.77438536,113940.0,113930.0,0.871]
[1757541864512,1.5170638,113940.0,113930.0,0.871]
[1757541864807,1.64572458,113940.0,113930.0,0.871]
[1757541865412,1.64572458,113940.0,113930.0,1.04773]
[1757541865810,0.3608,113940.0,113930.0,1.04773]
[1757541866015,1.18792,113940.0,113930.0,1.04773]
[1757541867414,1.18792,113940.0,113930.0,1.20461547]
[1757541867716,0.3608,113940.0,113930.0,1.20461547]
[1757541867908,0.82696,113940.0,113930.0,1.20461547]
[1757541868311,0.9147038,113940.0,113930.0,1.20461547]
[1757541868517,1.2755038,113940.0,113930.0,1.20461547]
[1757541870108,1.40416458,113940.0,113930.0,1.20461547]
[1757541870308,1.5499703,113940.0,113930.0,1.09442547]
[1757541870508,1.5255038,113940.0,113930.0,1.03665547]
[1757541870711,1.7999703,113940.0,113930.0,1.03665547]
[1757541874318,1.70850668,113940.0,113930.0,1.03665547]
[1757541876115,1.5255038,113940.0,113930.0,1.03665547]
[1757541876320,1.70850668,113940.0,113930.0,1.03665547]
[1757541876522,1.83290668,113940.0,113930.0,1.03665547]
[1757541879019,1.74140524,113940.0,113930.0,1.10319547]
[1757541879420,1.49140524,113940.0,113930.0,1.10319547]
[1757541879624,1.49140524,113940.0,113930.0,1.03665547]
[1757541879810,1.49140524,113940.0,113930.0,1.10319547]
[1757541883225,1.3999038,113940.0,113930.0,1.10319547]
[1757541883521,1.49140524,113940.0,113930.0,1.10319547]
[1757541885224,1.3999038,113940.0,113930.0,1.10319547]
[1757541885523,1.49140524,113940.0,113930.0,1.10319547]
[1757541886619,1.49140524,113940.0,113930.0,0.94631]
[1757541886818,1.49140524,113940.0,113930.0,1.0565]
[1757541887520,0.5729438,113940.0,113930.0,1.0565]
[1757541887824,0.5729438,113940.0,113930.0,1.14800144]
[1757541888120,1.4015838,113940.0,113930.0,1.14800144]
[1757541890428,1.4015838,113940.0,113930.0,1.0565]
[1757541890724,1.4015838,113940.0,113930.0,1.14800144]
[1757541891223,1.2771838,113940.0,113930.0,1.14800144]
[1757541891926,0.0877448,113940.0,113930.0,1.52997254]
[1757541892128,0.9155048,113940.0,113930.0,1.52997254]
[1757541893229,0.9155048,113940.0,113930.0,1.68685801]
[1757541893428,0.9155048,113940.0,113930.0,1.81587221]
[1757541895531,0.9155048,113940.0,113930.0,1.65898674]
[1757541895827,0.9155048,113940.0,113930.0,1.86322731]
[1757541898532,1.36780624,113940.0,113930.0,1.39271167]
[1757541898730,1.70930768,113940.0,113930.0,1.08401057]
[1757541899224,1.70930768,113940.0,113930.0,1.15358057]
[1757541899424,1.70930768,113940.0,113930.0,0.94934]
[1757541899825,1.61780624,113940.0,113930.0,1.06452]
[1757541900335,1.61780624,113940.0,113930.0,0.94934]
[1757541901134,1.70930768,113940.0,113930.0,0.94934]
[1757541902132,1.61496624,113940.0,113930.0,1.06452]
[1757541905638,1.70646768,113940.0,113930.0,1.06452]
[1757541906937,1.61496624,113940.0,113930.0,0.94934]
[1757541907449,1.61496624,113940.0,113930.0,1.06452]
[1757541907827,1.61496624,113940.0,113930.0,0.94934]